[Event "The Schackveckan 2023: Chessweek Elo-tournaments Group 1"]
[Site "Göteborgs schackcentrum, Vegagatan 20, Gothenburg, Sweden"]
[Date "2023.08.05"]
[Round "1.1"]
[White "Havner, Arvid"]
[Black "Frisk, Anders"]
[Result "0-1"]
[TimeControl "90 minutes for 40 moves + 30 minutes for the rest of the game + 30 seconds per move from move one."]
[WhiteFideId "1769308"]
[BlackFideId "1718797"]
[WhiteElo "1825"]
[BlackElo "1808"]

1. e4 {[%clk 01:30:58]} {[%emt 00:00:02]} c5 {[%clk 01:30:53]} {[%emt
00:00:07]} 2. Nf3 {[%clk 01:31:23]} {[%emt 00:00:05]} Nc6 {[%clk 01:31:12]}
{[%emt 00:00:11]} 3. d4 {[%clk 01:28:59]} {[%emt 00:02:54]} cxd4 {[%clk
01:31:34]} {[%emt 00:00:09]} 4. Nxd4 {[%clk 01:29:24]} {[%emt 00:00:05]} e5
{[%clk 01:31:38]} {[%emt 00:00:25]} 5. Nb5 {[%clk 01:29:45]} {[%emt 00:00:09]}
d6 {[%clk 01:31:47]} {[%emt 00:00:20]} 6. N1c3 {[%clk 01:29:50]} {[%emt
00:00:25]} a6 {[%clk 01:31:53]} {[%emt 00:00:25]} 7. Na3 {[%clk 01:30:14]}
{[%emt 00:00:05]} Be7 {[%clk 01:31:35]} {[%emt 00:00:49]} 8. Nd5 {[%clk
01:28:36]} {[%emt 00:02:08]} Nf6 {[%clk 01:31:02]} {[%emt 00:01:03]} 9. Be3
{[%clk 01:27:39]} {[%emt 00:01:26]} Nxd5 {[%clk 01:29:16]} {[%emt 00:02:16]} 10.
exd5 {[%clk 01:27:47]} {[%emt 00:00:23]} Nd4 {[%clk 01:28:47]} {[%emt
00:00:59]} 11. Bxd4 {[%clk 01:25:21]} {[%emt 00:02:56]} exd4 {[%clk 01:28:46]}
{[%emt 00:00:31]} 12. Qxd4 {[%clk 01:23:35]} {[%emt 00:02:16]} O-O {[%emt
00:02:23]} 13. c3 {[%clk 01:16:18]} {[%emt 00:06:29]} Bf6 {[%clk 01:25:19]}
{[%emt 00:03:22]} 14. Qd3 {[%clk 01:13:11]} {[%emt 00:03:36]} Re8+ {[%clk
01:23:01]} {[%emt 00:02:48]} 15. Be2 {[%clk 01:13:28]} {[%emt 00:00:13]} Qe7
{[%clk 01:20:20]} {[%emt 00:03:13]} 16. Nc4 {[%clk 01:09:44]} {[%emt 00:04:14]}
Bf5 {[%clk 01:17:02]} {[%emt 00:03:47]} 17. Qd2 {[%clk 00:53:20]} {[%emt
00:16:53]} Bg5 {[%clk 01:09:30]} {[%emt 00:08:02]} 18. Ne3 {[%clk 00:53:48]}
{[%emt 00:00:03]} Bxe3 {[%clk 01:03:46]} {[%emt 00:06:14]} 19. Qxe3 {[%clk
00:44:58]} {[%emt 00:09:19]} Qd7 {[%clk 00:57:23]} {[%emt 00:06:54]} 20. Qd2
{[%clk 00:41:36]} {[%emt 00:03:52]} Qb5 {[%clk 00:52:00]} {[%emt 00:05:52]} 21.
Kf1 {[%clk 00:41:28]} {[%emt 00:00:38]} Rxe2 {[%clk 00:51:47]} {[%emt
00:00:44]} 22. a4 {[%clk 00:37:11]} {[%emt 00:04:48]} Rxd2+ {[%clk 00:49:35]}
{[%emt 00:02:41]} 23. Ke1 {[%emt 00:00:10]} 0-1

[Event "The Schackveckan 2023: Chessweek Elo-tournaments Group 1"]
[Site "Göteborgs schackcentrum, Vegagatan 20, Gothenburg, Sweden"]
[Date "2023.08.05"]
[Round "1.2"]
[White "Bengtsson, Jonas"]
[Black "Johansson, Eva"]
[Result "0-1"]
[TimeControl "90 minutes for 40 moves + 30 minutes for the rest of the game + 30 seconds per move from move one."]
[WhiteFideId "1715135"]
[BlackFideId "1724584"]
[WhiteElo "2013"]
[BlackElo "1808"]

1. d4 {[%clk 01:30:56]} {[%emt 00:00:03]} d6 {[%clk 01:30:52]} {[%emt
00:00:09]} 2. Nf3 {[%clk 01:31:19]} {[%emt 00:00:07]} Nd7 {[%clk 01:30:28]}
{[%emt 00:00:53]} 3. c4 {[%clk 01:31:34]} {[%emt 00:00:15]} e5 {[%clk
01:30:03]} {[%emt 00:00:55]} 4. Nc3 {[%clk 01:31:50]} {[%emt 00:00:15]} Ngf6
{[%clk 01:29:47]} {[%emt 00:00:44]} 5. e4 {[%clk 01:32:01]} {[%emt 00:00:20]}
Be7 {[%clk 01:29:31]} {[%emt 00:00:46]} 6. Be2 {[%clk 01:31:44]} {[%emt
00:00:48]} O-O {[%clk 01:29:54]} {[%emt 00:00:07]} 7. O-O {[%clk 01:32:08]}
{[%emt 00:00:06]} c6 {[%clk 01:29:13]} {[%emt 00:01:10]} 8. Re1 {[%clk
01:31:20]} {[%emt 00:01:17]} Qc7 {[%clk 01:27:07]} {[%emt 00:02:37]} 9. Bf1
{[%clk 01:31:31]} {[%emt 00:00:18]} Re8 {[%clk 01:25:22]} {[%emt 00:02:15]} 10.
d5 {[%clk 01:28:27]} {[%emt 00:03:36]} a5 {[%clk 01:19:02]} {[%emt 00:06:50]}
11. b3 {[%clk 01:12:50]} {[%emt 00:16:07]} Nc5 {[%clk 01:15:11]} {[%emt
00:04:21]} 12. a3 {[%clk 01:12:52]} {[%emt 00:00:28]} Bg4 {[%clk 01:14:01]}
{[%emt 00:01:38]} 13. Rb1 {[%clk 01:11:30]} {[%emt 00:01:54]} Ncd7 {[%clk
01:08:55]} {[%emt 00:05:35]} 14. h3 {[%clk 01:02:02]} {[%emt 00:09:58]} Bh5
{[%clk 01:06:29]} {[%emt 00:02:56]} 15. b4 {[%clk 00:57:16]} {[%emt 00:05:16]}
Bf8 {[%clk 01:01:45]} {[%emt 00:05:13]} 16. Qd3 {[%clk 00:54:04]} {[%emt
00:03:43]} Rec8 {[%clk 00:57:55]} {[%emt 00:04:20]} 17. Bd2 {[%clk 00:50:29]}
{[%emt 00:04:06]} axb4 {[%clk 00:57:02]} {[%emt 00:01:23]} 18. axb4 {[%clk
00:50:48]} {[%emt 00:00:10]} Ra3 {[%clk 00:57:14]} {[%emt 00:00:18]} 19. Bc1
{[%clk 00:45:09]} {[%emt 00:06:09]} Raa8 {[%clk 00:49:29]} {[%emt 00:08:15]} 20.
Bb2 {[%clk 00:39:00]} {[%emt 00:06:39]} Qb6 {[%clk 00:44:46]} {[%emt 00:05:13]}
21. Ba1 {[%clk 00:38:25]} {[%emt 00:01:06]} Ra3 {[%clk 00:40:17]} {[%emt
00:04:58]} 22. dxc6 {[%clk 00:31:58]} {[%emt 00:06:57]} bxc6 {[%clk 00:39:52]}
{[%emt 00:00:54]} 23. Nd2 {[%clk 00:27:49]} {[%emt 00:04:40]} Bg6 {[%clk
00:34:57]} {[%emt 00:05:25]} 24. Bb2 {[%clk 00:27:02]} {[%emt 00:01:18]} Raa8
{[%clk 00:34:36]} {[%emt 00:00:51]} 25. Bc1 {[%clk 00:18:04]} {[%emt 00:09:27]}
Rd8 {[%clk 00:32:46]} {[%emt 00:02:19]} 26. Nf3 {[%clk 00:16:57]} {[%emt
00:01:39]} Be7 {[%clk 00:29:32]} {[%emt 00:03:43]} 27. Qe2 {[%clk 00:13:53]}
{[%emt 00:03:35]} Nf8 {[%clk 00:27:50]} {[%emt 00:02:11]} 28. Rd1 {[%clk
00:10:34]} {[%emt 00:03:50]} Ne6 {[%clk 00:27:34]} {[%emt 00:00:45]} 29. Be3
{[%clk 00:09:19]} {[%emt 00:01:45]} Qc7 {[%clk 00:26:47]} {[%emt 00:01:14]} 30.
Qc2 {[%clk 00:09:30]} {[%emt 00:00:22]} d5 {[%clk 00:24:01]} {[%emt 00:03:17]}
31. Bg5 {[%clk 00:03:44]} {[%emt 00:06:16]} Nxg5 {[%clk 00:18:57]} {[%emt
00:05:33]} 32. Nxg5 {[%clk 00:04:09]} {[%emt 00:00:06]} d4 {[%clk 00:19:07]}
{[%emt 00:00:20]} 33. Na4 {[%clk 00:03:25]} {[%emt 00:01:14]} h6 {[%clk
00:19:24]} {[%emt 00:00:12]} 34. Nf3 {[%clk 00:03:50]} {[%emt 00:00:05]} Bxe4
{[%clk 00:18:52]} {[%emt 00:01:03]} 35. Bd3 {[%clk 00:02:58]} {[%emt 00:01:21]}
Bxd3 {[%clk 00:18:55]} {[%emt 00:00:28]} 0-1

[Event "The Schackveckan 2023: Chessweek Elo-tournaments Group 1"]
[Site "Göteborgs schackcentrum, Vegagatan 20, Gothenburg, Sweden"]
[Date "2023.08.05"]
[Round "1.3"]
[White "Pettersson, Anders 1981"]
[Black "Tobiasson, Bjorn"]
[Result "1-0"]
[TimeControl "90 minutes for 40 moves + 30 minutes for the rest of the game + 30 seconds per move from move one."]
[WhiteFideId "1715143"]
[BlackFideId "1773682"]
[WhiteElo "2003"]
[BlackElo "1830"]

1. d4 {[%clk 01:30:55]} {[%emt 00:00:04]} Nf6 {[%clk 01:30:43]} {[%emt
00:00:18]} 2. c4 {[%clk 01:31:18]} {[%emt 00:00:07]} e5 {[%clk 01:30:47]}
{[%emt 00:00:27]} 3. dxe5 {[%clk 01:31:39]} {[%emt 00:00:08]} Ng4 {[%clk
01:31:05]} {[%emt 00:00:12]} 4. e4 {[%clk 01:31:55]} {[%emt 00:00:13]} Nxe5
{[%clk 01:31:14]} {[%emt 00:00:23]} 5. f4 {[%clk 01:32:17]} {[%emt 00:00:07]}
Ng6 {[%clk 01:29:21]} {[%emt 00:02:23]} 6. h4 {[%clk 01:32:20]} {[%emt
00:00:27]} Bb4+ {[%clk 01:19:45]} {[%emt 00:10:06]} 7. Bd2 {[%clk 01:32:39]}
{[%emt 00:00:10]} Qe7 {[%clk 01:16:49]} {[%emt 00:03:28]} 8. Ne2 {[%clk
01:24:35]} {[%emt 00:08:33]} Bxd2+ {[%clk 01:01:21]} {[%emt 00:15:59]} 9. Qxd2
{[%clk 01:14:03]} {[%emt 00:11:02]} Qxe4 {[%clk 00:57:55]} {[%emt 00:03:55]} 10.
h5 {[%clk 01:14:19]} {[%emt 00:00:14]} Ne7 {[%clk 00:54:59]} {[%emt 00:03:26]}
11. Qc3 {[%clk 01:08:15]} {[%emt 00:06:34]} Nf5 {[%clk 00:50:15]} {[%emt
00:05:14]} 12. Rh3 {[%clk 01:08:31]} {[%emt 00:00:15]} d5 {[%clk 00:35:59]}
{[%emt 00:14:46]} 13. cxd5 {[%clk 00:58:43]} {[%emt 00:10:17]} O-O {[%clk
00:36:21]} {[%emt 00:00:09]} 14. g4 {[%clk 00:42:48]} {[%emt 00:16:25]} Nh6
{[%clk 00:33:59]} {[%emt 00:02:50]} 15. g5 {[%clk 00:43:14]} {[%emt 00:00:05]}
Nf5 {[%clk 00:32:27]} {[%emt 00:02:01]} 16. Rd3 {[%clk 00:39:28]} {[%emt
00:04:16]} Na6 {[%clk 00:27:34]} {[%emt 00:05:25]} 17. a3 {[%clk 00:37:51]}
{[%emt 00:02:07]} Nc5 {[%clk 00:27:07]} {[%emt 00:00:56]} 18. Rf3 {[%clk
00:29:29]} {[%emt 00:08:51]} Na4 {[%clk 00:23:26]} {[%emt 00:04:13]} 19. Qd3
{[%clk 00:23:35]} {[%emt 00:06:23]} Qxd3 {[%clk 00:23:27]} {[%emt 00:00:29]} 20.
Rxd3 {[%clk 00:24:04]} {[%emt 00:00:01]} Nxb2 {[%clk 00:23:06]} {[%emt
00:00:52]} 21. Rc3 {[%clk 00:22:01]} {[%emt 00:02:32]} f6 {[%clk 00:19:59]}
{[%emt 00:03:37]} 22. g6 {[%clk 00:15:11]} {[%emt 00:07:20]} hxg6 {[%clk
00:19:58]} {[%emt 00:00:31]} 23. hxg6 {[%clk 00:15:40]} {[%emt 00:00:01]} Ne7
{[%clk 00:18:49]} {[%emt 00:01:39]} 24. Bg2 {[%clk 00:08:51]} {[%emt 00:07:19]}
Bf5 {[%clk 00:18:55]} {[%emt 00:00:24]} 25. Rxc7 {[%clk 00:07:39]} {[%emt
00:01:42]} Nxg6 {[%clk 00:18:22]} {[%emt 00:01:04]} 26. Nd4 {[%clk 00:05:05]}
{[%emt 00:03:03]} Rfe8+ {[%clk 00:15:56]} {[%emt 00:02:58]} 27. Kd2 {[%clk
00:05:13]} {[%emt 00:00:21]} Nxf4 {[%clk 00:10:51]} {[%emt 00:05:35]} 28. Nxf5
{[%clk 00:03:24]} {[%emt 00:02:19]} Re2+ {[%clk 00:10:53]} {[%emt 00:00:28]} 29.
Kc3 {[%clk 00:03:51]} {[%emt 00:00:02]} Nd1+ {[%clk 00:10:00]} {[%emt
00:01:23]} 30. Kd4 {[%clk 00:02:57]} {[%emt 00:01:25]} Rxg2 {[%clk 00:09:52]}
{[%emt 00:00:38]} 31. Rxb7 {[%clk 00:02:39]} {[%emt 00:00:47]} Rd8 {[%clk
00:09:06]} {[%emt 00:01:16]} 32. Ne7+ {[%clk 00:01:57]} {[%emt 00:01:13]} Kh7
{[%clk 00:08:03]} {[%emt 00:01:33]} 33. Ke4 {[%clk 00:02:02]} {[%emt 00:00:25]}
g5 {[%clk 00:07:26]} {[%emt 00:01:07]} 34. Nc6+ {[%clk 00:02:00]} {[%emt
00:00:32]} Kg6 {[%clk 00:07:28]} {[%emt 00:00:27]} 35. Nxd8 {[%clk 00:02:26]}
{[%emt 00:00:05]} Re2+ {[%clk 00:06:37]} {[%emt 00:01:21]} 1-0

[Event "The Schackveckan 2023: Chessweek Elo-tournaments Group 1"]
[Site "Göteborgs schackcentrum, Vegagatan 20, Gothenburg, Sweden"]
[Date "2023.08.06"]
[Round "2.1"]
[White "Fransson, Lennart"]
[Black "Havner, Arvid"]
[Result "1/2-1/2"]
[TimeControl "90 minutes for 40 moves + 30 minutes for the rest of the game + 30 seconds per move from move one."]
[WhiteFideId "1706756"]
[BlackFideId "1769308"]
[WhiteElo "1834"]
[BlackElo "1825"]

1. b4 {[%clk 01:30:48]} {[%emt 00:00:12]} e6 {[%clk 01:30:39]} {[%emt
00:00:21]} 2. Bb2 {[%clk 01:31:09]} {[%emt 00:00:08]} Nf6 {[%clk 01:31:03]}
{[%emt 00:00:07]} 3. a3 {[%clk 01:30:25]} {[%emt 00:01:13]} d5 {[%clk
01:28:48]} {[%emt 00:02:45]} 4. g3 {[%clk 01:29:18]} {[%emt 00:01:37]} Bd7
{[%clk 01:26:34]} {[%emt 00:02:44]} 5. Nf3 {[%clk 01:29:07]} {[%emt 00:00:40]}
a5 {[%clk 01:26:14]} {[%emt 00:00:52]} 6. bxa5 {[%clk 01:29:03]} {[%emt
00:00:34]} Nc6 {[%clk 01:26:13]} {[%emt 00:00:31]} 7. Bg2 {[%clk 01:27:44]}
{[%emt 00:01:48]} Bd6 {[%clk 01:23:33]} {[%emt 00:03:11]} 8. O-O {[%clk
01:21:15]} {[%emt 00:06:58]} Qe7 {[%clk 01:21:09]} {[%emt 00:02:54]} 9. d3
{[%clk 01:19:10]} {[%emt 00:02:35]} O-O {[%clk 01:20:46]} {[%emt 00:00:53]} 10.
Nbd2 {[%clk 01:13:44]} {[%emt 00:05:56]} Rxa5 {[%clk 01:18:50]} {[%emt
00:02:27]} 11. a4 {[%clk 01:02:41]} {[%emt 00:11:34]} Rfa8 {[%clk 01:04:50]}
{[%emt 00:14:29]} 12. Qb1 {[%clk 00:49:26]} {[%emt 00:13:44]} b6 {[%clk
00:48:18]} {[%emt 00:17:02]} 13. c4 {[%clk 00:47:23]} {[%emt 00:02:33]} Rxa4
{[%clk 00:46:39]} {[%emt 00:02:09]} 14. Qc2 {[%clk 00:44:08]} {[%emt 00:03:44]}
Nb4 {[%clk 00:40:47]} {[%emt 00:06:23]} 15. Qb3 {[%clk 00:41:47]} {[%emt
00:02:51]} c5 {[%clk 00:34:29]} {[%emt 00:06:48]} 16. cxd5 {[%clk 00:33:15]}
{[%emt 00:09:01]} exd5 {[%clk 00:32:54]} {[%emt 00:02:06]} 17. e4 {[%clk
00:33:06]} {[%emt 00:00:39]} Rxa1 {[%clk 00:30:24]} {[%emt 00:03:01]} 18. Rxa1
{[%clk 00:29:27]} {[%emt 00:04:09]} Rxa1+ {[%clk 00:30:45]} {[%emt 00:00:09]}
19. Bxa1 {[%clk 00:29:50]} {[%emt 00:00:06]} dxe4 {[%clk 00:30:58]} {[%emt
00:00:17]} 20. dxe4 {[%clk 00:26:08]} {[%emt 00:04:12]} Nxe4 {[%clk 00:28:43]}
{[%emt 00:02:46]} 21. Nxe4 {[%clk 00:26:05]} {[%emt 00:00:32]} Qxe4 {[%clk
00:29:03]} {[%emt 00:00:10]} 22. Qxf7+ {[%clk 00:24:00]} {[%emt 00:02:35]} Kxf7
{[%clk 00:28:43]} {[%emt 00:00:50]} 23. Ng5+ {[%clk 00:24:28]} {[%emt
00:00:02]} Kg6 {[%clk 00:25:10]} {[%emt 00:04:04]} 24. Nxe4 {[%clk 00:24:13]}
{[%emt 00:00:45]} Be7 {[%clk 00:24:07]} {[%emt 00:01:31]} 25. Be5 {[%clk
00:21:51]} {[%emt 00:02:53]} Bc6 {[%clk 00:22:17]} {[%emt 00:02:21]} 26. g4
{[%clk 00:19:31]} {[%emt 00:02:49]} c4 {[%clk 00:16:33]} {[%emt 00:06:13]} 27.
f4 {[%clk 00:16:57]} {[%emt 00:03:05]} Kf7 {[%clk 00:09:50]} {[%emt 00:07:12]}
28. Kf1 {[%clk 00:13:41]} {[%emt 00:03:47]} Nd3 {[%clk 00:09:00]} {[%emt
00:01:20]} 29. Bc7 {[%clk 00:10:28]} {[%emt 00:03:45]} b5 {[%clk 00:07:22]}
{[%emt 00:02:07]} 30. Ng5+ {[%clk 00:09:03]} {[%emt 00:01:54]} Bxg5 {[%clk
00:06:51]} {[%emt 00:01:01]} 31. Bxc6 {[%clk 00:09:26]} {[%emt 00:00:07]} c3
{[%clk 00:05:00]} {[%emt 00:02:22]} 32. Bd5+ {[%clk 00:04:03]} {[%emt
00:05:53]} Ke7 {[%clk 00:04:47]} {[%emt 00:00:41]} 33. Bb3 {[%clk 00:04:00]}
{[%emt 00:00:33]} Bxf4 {[%clk 00:04:05]} {[%emt 00:01:13]} 34. Ba5 {[%clk
00:03:43]} {[%emt 00:00:47]} Bd2 {[%clk 00:03:20]} {[%emt 00:01:14]} 35. Bc2
{[%clk 00:02:00]} {[%emt 00:02:14]} Nc1 {[%clk 00:03:09]} {[%emt 00:00:42]} 36.
Bxh7 {[%clk 00:02:06]} {[%emt 00:00:24]} Kd6 {[%clk 00:03:20]} {[%emt
00:00:18]} 37. Bb4+ {[%clk 00:01:25]} {[%emt 00:01:11]} Kd5 {[%clk 00:03:08]}
{[%emt 00:00:41]} 38. Ba3 {[%clk 00:01:07]} {[%emt 00:00:50]} Kc4 {[%clk
00:02:47]} {[%emt 00:00:51]} 39. Bg8+ {[%clk 00:01:23]} {[%emt 00:00:13]} Kd3
{[%clk 00:02:48]} {[%emt 00:00:28]} 40. Bh7+ {[%clk 00:01:45]} {[%emt
00:00:08]} Ke3 {[%clk 00:02:55]} {[%emt 00:00:23]} 41. Bxc1 {[%clk 00:29:44]}
{[%emt 00:02:32]} Bxc1 {[%clk 00:33:08]} {[%emt 00:00:16]} 42. Ke1 {[%clk
00:29:23]} {[%emt 00:00:52]} b4 {[%clk 00:16:57]} {[%emt 00:16:42]} 43. Kd1
{[%clk 00:29:26]} {[%emt 00:00:26]} Ba3 {[%clk 00:15:56]} {[%emt 00:01:31]} 44.
Kc2 {[%clk 00:29:38]} {[%emt 00:00:18]} Kf4 {[%clk 00:16:19]} {[%emt 00:00:07]}
45. Bf5 {[%clk 00:29:44]} {[%emt 00:00:24]} g5 {[%emt 00:01:05]} 1/2-1/2

[Event "The Schackveckan 2023: Chessweek Elo-tournaments Group 1"]
[Site "Göteborgs schackcentrum, Vegagatan 20, Gothenburg, Sweden"]
[Date "2023.08.06"]
[Round "2.2"]
[White "Johansson, Eva"]
[Black "Pettersson, Anders 1981"]
[Result "0-1"]
[TimeControl "90 minutes for 40 moves + 30 minutes for the rest of the game + 30 seconds per move from move one."]
[WhiteFideId "1724584"]
[BlackFideId "1715143"]
[WhiteElo "1808"]
[BlackElo "2003"]

1. d4 c5 2. Nf3 Nf6 3. e3 e6 4. c4 b6 5. Be2 Bb7 6. O-O Be7 7. b3 O-O 8. Bb2 d6
9. Nc3 Nbd7 10. Rc1 Ne8 11. d5 e5 12. e4 a6 13. Ne1 Nc7 14. a4 Bc8 15. Rc2 Re8
16. Bc1 Nf8 17. f4 exf4 18. Bxf4 Bf6 19. Bd3 Ng6 20. Qf3 Nxf4 21. Qxf4 Qe7 22.
Nf3 Kh8 23. h3 Rg8 24. g4 g5 25. Qg3 b5 26. Nd1 bxa4 27. bxa4 Rb8 28. Re2 Rb3
29. Bc2 Bd4+ 30. Kh1 Ra3 31. Qh2 f6 32. Nxd4 cxd4 33. Nf2 a5 34. Bd3 Na6 35.
Bc2 Nc5 36. Qg2 Ba6 37. Rd1 Bxc4 38. Red2 Rb8 39. Rxd4 Be2 40. Rc1 Bf3 0-1

[Event "The Schackveckan 2023: Chessweek Elo-tournaments Group 1"]
[Site "Göteborgs schackcentrum, Vegagatan 20, Gothenburg, Sweden"]
[Date "2023.08.06"]
[Round "2.3"]
[White "Frisk, Anders"]
[Black "Bengtsson, Jonas"]
[Result "1/2-1/2"]
[TimeControl "90 minutes for 40 moves + 30 minutes for the rest of the game + 30 seconds per move from move one."]
[WhiteFideId "1718797"]
[BlackFideId "1715135"]
[WhiteElo "1808"]
[BlackElo "2013"]

1. c4 {[%clk 01:30:57]} {[%emt 00:00:03]} Nf6 {[%clk 01:30:52]} {[%emt
00:00:08]} 2. Nc3 {[%clk 01:31:18]} {[%emt 00:00:09]} c5 {[%clk 01:31:16]}
{[%emt 00:00:06]} 3. e4 {[%clk 01:30:08]} {[%emt 00:01:40]} Nc6 {[%clk
01:31:22]} {[%emt 00:00:23]} 4. g3 {[%clk 01:29:54]} {[%emt 00:00:46]} e6
{[%clk 01:29:27]} {[%emt 00:02:24]} 5. Bg2 {[%clk 01:29:48]} {[%emt 00:00:35]}
Be7 {[%clk 01:29:50]} {[%emt 00:00:07]} 6. Nge2 {[%clk 01:28:48]} {[%emt
00:01:30]} Qb6 {[%clk 01:27:56]} {[%emt 00:02:24]} 7. O-O {[%clk 01:26:06]}
{[%emt 00:03:12]} O-O {[%clk 01:28:18]} {[%emt 00:00:08]} 8. d3 {[%clk
01:25:10]} {[%emt 00:01:27]} d6 {[%clk 01:25:30]} {[%emt 00:03:18]} 9. Rb1
{[%clk 01:21:35]} {[%emt 00:04:05]} Nd4 {[%clk 01:15:19]} {[%emt 00:10:40]} 10.
h3 {[%clk 01:17:18]} {[%emt 00:04:47]} Bd7 {[%clk 01:12:32]} {[%emt 00:03:17]}
11. Be3 {[%clk 01:15:39]} {[%emt 00:02:10]} a5 {[%clk 01:10:33]} {[%emt
00:02:29]} 12. b3 {[%clk 01:09:28]} {[%emt 00:06:41]} Qa7 {[%clk 00:54:33]}
{[%emt 00:16:30]} 13. Bd2 {[%clk 00:57:29]} {[%emt 00:12:28]} Rab8 {[%clk
00:50:16]} {[%emt 00:04:47]} 14. Nxd4 {[%clk 00:54:34]} {[%emt 00:03:25]} cxd4
{[%clk 00:50:41]} {[%emt 00:00:06]} 15. Nb5 {[%clk 00:54:31]} {[%emt 00:00:33]}
Qb6 {[%clk 00:46:19]} {[%emt 00:04:52]} 16. a4 {[%clk 00:53:04]} {[%emt
00:01:57]} d5 {[%clk 00:40:00]} {[%emt 00:06:49]} 17. exd5 {[%clk 00:44:50]}
{[%emt 00:08:44]} exd5 {[%clk 00:40:13]} {[%emt 00:00:16]} 18. Qe1 {[%clk
00:42:37]} {[%emt 00:02:43]} Bd8 {[%clk 00:40:05]} {[%emt 00:00:39]} 19. Bf4
{[%clk 00:36:18]} {[%emt 00:06:48]} Ra8 {[%clk 00:37:31]} {[%emt 00:03:05]} 20.
Qd2 {[%clk 00:34:28]} {[%emt 00:02:19]} Bxb5 {[%clk 00:27:56]} {[%emt
00:10:05]} 21. cxb5 {[%clk 00:32:10]} {[%emt 00:02:48]} Be7 {[%clk 00:27:30]}
{[%emt 00:00:57]} 22. Be5 {[%clk 00:28:05]} {[%emt 00:04:35]} Bb4 {[%clk
00:22:00]} {[%emt 00:05:59]} 23. Qf4 {[%clk 00:26:18]} {[%emt 00:02:17]} Bc3
{[%clk 00:22:20]} {[%emt 00:00:10]} 24. Bxf6 {[%clk 00:24:31]} {[%emt
00:02:18]} Qxf6 {[%clk 00:22:43]} {[%emt 00:00:06]} 25. Qxf6 {[%emt 00:00:37]}
gxf6 {[%clk 00:23:09]} {[%emt 00:00:02]} 26. Bxd5 {[%clk 00:23:44]} {[%emt
00:01:13]} Rab8 {[%clk 00:23:32]} {[%emt 00:00:07]} 27. Be4 {[%clk 00:18:57]}
{[%emt 00:05:17]} b6 {[%clk 00:23:50]} {[%emt 00:00:12]} 28. Rbc1 {[%clk
00:18:31]} {[%emt 00:00:55]} Rbc8 {[%clk 00:22:29]} {[%emt 00:01:51]} 29. Rc2
{[%clk 00:17:02]} {[%emt 00:02:00]} Rfe8 {[%clk 00:21:29]} {[%emt 00:01:30]} 30.
f3 {[%clk 00:14:04]} {[%emt 00:03:27]} Rc5 {[%clk 00:21:39]} {[%emt 00:00:21]}
31. g4 {[%clk 00:13:13]} {[%emt 00:01:21]} Kg7 {[%clk 00:19:44]} {[%emt
00:02:25]} 32. Rff2 {[%clk 00:11:56]} {[%emt 00:01:46]} Re7 {[%clk 00:19:21]}
{[%emt 00:00:52]} 33. Rfe2 {[%clk 00:11:24]} {[%emt 00:01:04]} h6 {[%clk
00:19:25]} {[%emt 00:00:25]} 34. Kf2 {[%clk 00:10:37]} {[%emt 00:01:18]} Kf8
{[%clk 00:18:05]} {[%emt 00:01:49]} 35. Kf1 {[%clk 00:07:14]} {[%emt 00:03:53]}
Bb4 {[%clk 00:17:25]} {[%emt 00:01:10]} 36. Rxc5 {[%clk 00:05:44]} {[%emt
00:02:00]} Bxc5 {[%clk 00:17:49]} {[%emt 00:00:06]} 37. Bc6 {[%clk 00:05:11]}
{[%emt 00:01:03]} Rxe2 {[%clk 00:18:10]} {[%emt 00:00:09]} 38. Kxe2 {[%clk
00:05:33]} {[%emt 00:00:09]} Bd6 {[%clk 00:18:28]} {[%emt 00:00:12]} 39. f4
{[%clk 00:02:01]} {[%emt 00:04:02]} Bxf4 {[%clk 00:18:38]} {[%emt 00:00:20]} 40.
Kf3 {[%clk 00:02:17]} {[%emt 00:00:14]} Be3 {[%clk 00:14:44]} {[%emt 00:04:24]}
41. Ke4 {[%clk 00:01:29]} {[%emt 00:01:18]} Ke7 {[%clk 00:15:07]} {[%emt
00:00:06]} 42. Kd5 {[%clk 00:29:55]} {[%emt 00:02:04]} Kd8 {[%clk 00:44:00]}
{[%emt 00:01:38]} 43. h4 {[%clk 00:25:55]} {[%emt 00:04:29]} Bf2 {[%clk
00:44:15]} {[%emt 00:00:15]} 44. h5 {[%clk 00:25:07]} {[%emt 00:01:19]} Be3
{[%clk 00:44:38]} {[%emt 00:00:07]} 45. Kc4 {[%clk 00:24:19]} {[%emt 00:01:18]}
Kc7 {[%clk 00:44:25]} {[%emt 00:00:43]} 46. Be8 {[%clk 00:23:25]} {[%emt
00:01:23]} Kd6 {[%clk 00:44:18]} {[%emt 00:00:37]} 47. Bxf7 {[%clk 00:23:24]}
{[%emt 00:00:31]} Bf2 {[%clk 00:41:58]} {[%emt 00:02:50]} 48. b4 {[%clk
00:20:12]} {[%emt 00:03:43]} axb4 {[%clk 00:42:13]} {[%emt 00:00:15]} 49. Kxb4
{[%clk 00:20:33]} {[%emt 00:00:09]} Be1+ {[%clk 00:42:32]} {[%emt 00:00:10]} 50.
Kc4 {[%clk 00:20:00]} {[%emt 00:01:03]} Ke5 {[%clk 00:42:43]} {[%emt 00:00:19]}
51. Bg6 {[%clk 00:19:16]} {[%emt 00:01:14]} Ba5 {[%clk 00:42:58]} {[%emt
00:00:15]} 52. Bf5 {[%clk 00:17:42]} {[%emt 00:02:04]} Be1 {[%clk 00:43:13]}
{[%emt 00:00:15]} 53. Be4 {[%clk 00:16:00]} {[%emt 00:02:12]} Ba5 {[%clk
00:43:35]} {[%emt 00:00:09]} 54. Bf5 {[%clk 00:16:09]} {[%emt 00:00:21]} Be1
{[%clk 00:43:59]} {[%emt 00:00:05]} 55. Be4 {[%clk 00:16:33]} {[%emt 00:00:06]}
Ba5 {[%clk 00:44:24]} {[%emt 00:00:04]} 1/2-1/2